fUSD/lending_fUSD_20260627
["ID","MTS","AMOUNT","RATE_DAILY","PERIOD"]
[426530919,1782548987000,329.08,9.608e-05,2]
[426530922,1782549016000,177.82,9.402e-05,2]
[426530958,1782549032000,-166.66,0.00012623,2]
[426530956,1782549032000,-198.52979967,0.0001246,2]
[426530954,1782549032000,-166.66,0.00012382,2]
[426530963,1782549032000,-383.57912122,0.00013053,2]
[426530955,1782549032000,-2104.68,0.00012444,2]
[426530957,1782549032000,-200.0,0.00012496,2]
[426530951,1782549032000,-166.66,0.00012142,2]
[426530959,1782549032000,-150.0,0.00012623,2]
[426530953,1782549032000,-2104.68,0.00012148,2]
[426530961,1782549032000,-298.99,0.00012939,2]
[426530971,1782549032000,-151.0,0.00013463,2]
[426530969,1782549032000,-1538.12,0.00013406,2]
[426530967,1782549032000,-168.21,0.00013332,2]
[426530986,1782549032000,-151.0,0.00013953,2]
[426530979,1782549032000,-153.0,0.00013853,2]
[426530981,1782549032000,-151.0,0.00013953,2]
[426530950,1782549032000,-166.66,0.00011901,2]
[426530977,1782549032000,-150.0,0.00013853,2]
[426530973,1782549032000,-151.0,0.00013541,2]
[426530988,1782549032000,-153.0,0.00013953,2]
[426530975,1782549032000,-255.0,0.00013721,2]
[426530993,1782549032000,-150.0,0.00013953,2]
[426530984,1782549032000,-150.0,0.00013953,2]
[426530965,1782549032000,-150.0,0.00013153,2]
[426530962,1782549032000,-2104.68,0.00013036,2]
[426530944,1782549032000,-326.99,0.00011463,2]
[426530949,1782549032000,-150.0,0.00011852,2]
[426530925,1782549032000,-42.64436629,0.00010292,2]
[426530926,1782549032000,-322.64,0.00010302,2]
[426530934,1782549032000,-329.08,0.00010619,2]
[426530930,1782549032000,-322.64,0.00010534,2]
[426530927,1782549032000,-410.0734453,0.00010325,2]
[426530928,1782549032000,-198.52979968,0.00010433,2]
[426530929,1782549032000,-1593.96333735,0.0001051,2]
[426530932,1782549032000,-328.92,0.0001061,2]
[426530933,1782549032000,-314.71,0.00010619,2]
[426530931,1782549032000,-200.0,0.00010597,2]
[426530935,1782549032000,-322.64,0.00010807,2]
[426530937,1782549032000,-150.0,0.00011115,2]
[426530936,1782549032000,-328.92,0.0001089,2]
[426530938,1782549032000,-193.57369918,0.00011125,2]
[426530939,1782549032000,-500.0,0.00011125,2]
[426530943,1782549032000,-166.66,0.00011421,2]
[426530940,1782549032000,-303.36390796,0.00011125,2]
[426530941,1782549032000,-326.99,0.00011169,2]
[426530945,1782549032000,-166.66,0.00011661,2]
[426530946,1782549032000,-250.0,0.00011671,2]
[426530942,1782549032000,-463.68668621,0.00011348,2]
[426530948,1782549032000,-2104.68,0.00011851,2]
[426530947,1782549032000,-313.83746282,0.00011748,2]
[426530960,1782549032000,-2104.68,0.0001274,2]
[426530989,1782549032000,-152.0,0.00013953,2]
[426530983,1782549032000,-151.0,0.00013953,2]
[426530999,1782549032000,-151.0,0.00013953,2]
[426531022,1782549032000,-500.0,0.00014686,2]
[426531020,1782549032000,-317026.925,0.00014587,2]
[426531018,1782549032000,-500.0,0.00014586,2]
[426531024,1782549032000,-493.36680059,0.00014686,2]
[426531030,1782549032000,-150.0,0.00014787,2]
[426531026,1782549032000,-208.098022,0.00014686,2]
[426531029,1782549032000,-4710.58088655,0.00014787,2]
[426531025,1782549032000,-500.0,0.00014686,2]
[426531031,1782549032000,-150.0,0.00014787,2]
[426531027,1782549032000,-252630.1964,0.00014687,2]
[426531032,1782549032000,-1721.9473,0.00014787,2]
[426531033,1782549032000,-151.0,0.00014787,2]
[426531034,1782549032000,-151.0,0.00014787,2]
[426531028,1782549032000,-28626.27061345,0.00014787,2]
[426531035,1782549032000,-150.0,0.00014787,2]
[426531037,1782549032000,-152.0,0.00014787,2]
[426531039,1782549032000,-433.0,0.0001492,2]
[426531036,1782549032000,-152.0,0.00014787,2]
[426531043,1782549032000,-22479.82925717,0.00015681,2]
[426531042,1782549032000,-160.0,0.00015466,2]
[426531040,1782549032000,-199.5,0.00015203,2]
[426531041,1782549032000,-216.51184279,0.00015426,2]
[426531038,1782549032000,-500.0,0.00014886,2]
[426531023,1782549032000,-500.0,0.00014686,2]
[426531016,1782549032000,-500.0,0.00014586,2]
[426530990,1782549032000,-151.0,0.00013953,2]
[426531021,1782549032000,-248.0,0.00014587,2]
[426531013,1782549032000,-500.0,0.00014586,2]
[426530994,1782549032000,-151.0,0.00013953,2]
[426530992,1782549032000,-151.0,0.00013953,2]
[426530998,1782549032000,-151.0,0.00013953,2]
[426530996,1782549032000,-150.0,0.00013953,2]
[426530997,1782549032000,-152.0,0.00013953,2]
[426530995,1782549032000,-151.0,0.00013953,2]
[426531000,1782549032000,-151.0,0.00013953,2]
[426531010,1782549032000,-500.0,0.00014586,2]
[426531006,1782549032000,-298.99,0.00014556,2]
[426531002,1782549032000,-893.39,0.00014082,2]
[426531004,1782549032000,-5787.42083748,0.00014487,2]
[426530991,1782549032000,-153.0,0.00013953,2]
[426531001,1782549032000,-150.0,0.00013953,2]
[426531007,1782549032000,-500.0,0.00014586,2]
[426531011,1782549032000,-500.0,0.00014586,2]
[426531003,1782549032000,-198.52979967,0.00014487,2]
[426531009,1782549032000,-500.0,0.00014586,2]
[426531008,1782549032000,-276.65482769,0.00014586,2]
[426531012,1782549032000,-500.0,0.00014586,2]
[426531017,1782549032000,-500.0,0.00014586,2]
[426531019,1782549032000,-501.10193794,0.00014586,2]
[426531015,1782549032000,-500.0,0.00014586,2]
[426531005,1782549032000,-14554.4463,0.00014487,2]
[426531014,1782549032000,-159.0073015,0.00014586,2]
[426531053,1782549033000,-298.99,0.00019408,2]
[426531055,1782549033000,-168.21,0.00019999,2]
[426531054,1782549033000,-1000.0,0.00019611,2]
[426531051,1782549033000,-353.0,0.00017621,2]
[426531065,1782549033000,-388.224,0.000213,2]
[426531064,1782549033000,-6881.3001472,0.000213,2]
[426531067,1782549033000,-388.224,0.000215,2]
[426531068,1782549033000,-6881.3001472,0.000217,2]
[426531056,1782549033000,-179.10935438,0.00020203,2]
[426531062,1782549033000,-388.224,0.000211,2]
[426531061,1782549033000,-6881.3001472,0.000211,2]
[426531047,1782549033000,-736.0,0.00016208,2]
[426531052,1782549033000,-298.99,0.00017791,2]
[426531057,1782549033000,-150.0,0.00020808,2]
[426531060,1782549033000,-211.91966717,0.000209,2]
[426531049,1782549033000,-153.0,0.00016301,2]
[426531059,1782549033000,-388.224,0.000209,2]
[426531050,1782549033000,-151.0,0.00016587,2]
[426531048,1782549033000,-153.0,0.0001623,2]
[426531045,1782549033000,-10645.33611779,0.00015681,2]
[426531046,1782549033000,-298.99,0.00016174,2]
[426531044,1782549033000,-15651.50152932,0.00015681,2]
[426531070,1782549033000,-6881.3001472,0.000219,2]
[426531058,1782549033000,-6881.3001472,0.000209,2]
[426531069,1782549033000,-388.224,0.000217,2]
[426531077,1782549033000,-6881.3001472,0.000228,2]
[426531066,1782549033000,-6881.3001472,0.000215,2]
[426531095,1782549033000,314.21,9.787e-05,2]
[426531088,1782549033000,-626.81695476,0.00026285,2]
[426531090,1782549033000,-598.65033095,0.00026285,2]
[426531094,1782549033000,-651.55355255,0.00026285,2]
[426531072,1782549033000,-6881.3001472,0.000222,2]
[426531093,1782549033000,-500.0,0.00014586,2]
[426531092,1782549033000,-5354.50676045,0.00026285,2]
[426531089,1782549033000,-337.97840835,0.00026285,2]
[426531084,1782549033000,-243.805,0.00025359,10]
[426531081,1782549033000,-182.78,0.00024658,2]
[426531078,1782549033000,-190.0,0.00023,2]
[426531091,1782549033000,-5787.42083746,0.00017001,2]
[426531074,1782549033000,-6881.3001472,0.000224,2]
[426531079,1782549033000,-151.0,0.00023682,2]
[426531063,1782549033000,-200.0,0.00021103,2]
[426531073,1782549033000,-691.86273183,0.00022381,2]
[426531071,1782549033000,-5000.0,0.00021918,2]
[426531075,1782549033000,-6881.3001472,0.000226,2]
[426531086,1782549033000,-7708.64583087,0.00026285,2]
[426531087,1782549033000,-1254.41808677,0.00026285,2]
[426531085,1782549033000,-27063.9927512,0.00026271,2]
[426531082,1782549033000,-184.83,0.00024658,2]
[426531083,1782549033000,-2164.986,0.00025359,10]
[426531080,1782549033000,-177.23,0.00024658,2]
[426531076,1782549033000,-402.0,0.00022767,2]
[426531102,1782549038000,-5787.42083746,0.00019515,2]
[426531105,1782549038000,-1148.53642385,0.00026285,2]
[426531103,1782549038000,-181.43,0.00024658,2]
[426531101,1782549038000,-314.21,0.00010818,2]
[426531106,1782549038000,-280.35220067,0.00026285,2]
[426531104,1782549038000,-5275.52732059,0.00026285,2]
[426531113,1782549040000,-1138.2686604,0.00026285,2]
[426531117,1782549043000,-330.1742672,0.0002203,2]
[426531133,1782549046000,-1603.32,0.0002203,2]
[426531132,1782549046000,-1813.59,0.0002203,2]
[426531136,1782549262000,1000.0,0.00037295,120]
[426531138,1782549311000,553.66,0.00037295,120]
[426531137,1782549311000,553.66,0.00037295,120]
[426531139,1782549312000,553.66,0.00037295,120]
[426531141,1782549312000,553.66,0.00037295,120]
[426531140,1782549312000,553.66,0.00037295,120]
[426531142,1782549313000,553.66,0.00037295,120]
[426531144,1782549313000,553.66,0.00037295,120]
[426531143,1782549313000,553.66,0.00037295,120]
[426531147,1782549314000,553.66,0.00037295,120]
[426531146,1782549314000,553.66,0.00037295,120]
[426531145,1782549314000,553.66,0.00037295,120]
[426531148,1782549314000,553.66,0.00037295,120]
[426531151,1782549315000,553.66,0.00037295,120]
[426531150,1782549315000,553.66,0.00037295,120]
[426531149,1782549315000,553.66,0.00037295,120]
[426531155,1782549316000,553.66,0.00037295,120]
[426531154,1782549316000,553.66,0.00037295,120]
[426531153,1782549316000,553.66,0.00037295,120]
[426531152,1782549316000,553.66,0.00037295,120]
[426531156,1782549317000,553.66,0.00037295,120]
[426531158,1782549317000,553.66,0.00037295,120]
[426531157,1782549317000,553.66,0.00037295,120]
[426531160,1782549318000,553.83286842,0.00037295,120]
[426531159,1782549318000,553.66,0.00037295,120]
[426531161,1782549410000,1588.77873493,0.00037295,120]
[426531162,1782549532000,1000.0,0.00037291,120]
[426531163,1782549542000,1000.0,0.00037291,120]
[426531164,1782549552000,1000.0,0.00037291,120]
[426531165,1782549557000,1000.0,0.00037291,120]
[426531166,1782549563000,1000.0,0.00037291,120]
[426531167,1782549569000,1000.0,0.00037291,120]
[426531168,1782549576000,1000.0,0.00037291,120]
[426531169,1782549584000,1000.0,0.00037291,120]
[426531170,1782549590000,1000.0,0.00037291,120]
[426531171,1782549598000,1000.0,0.00037291,120]
[426531172,1782549606000,1000.0,0.00037291,120]
[426531173,1782549622000,1000.0,0.00037291,120]
[426531174,1782549627000,1000.0,0.00037291,120]
[426531175,1782549642000,1000.0,0.00037291,120]
[426531176,1782549647000,1000.0,0.00037291,120]
[426531177,1782549652000,1000.0,0.00037291,120]
[426531178,1782549657000,1000.0,0.00037291,120]
[426531179,1782549663000,1000.0,0.00037291,120]
[426531180,1782549669000,1000.0,0.00037291,120]
[426531181,1782549674000,1000.0,0.00037291,120]
[426531182,1782549681000,1000.0,0.00037291,120]
[426531183,1782549693000,1000.0,0.00037291,120]
[426531184,1782549700000,1000.0,0.00037291,120]
[426531185,1782549705000,1000.0,0.00037291,120]
[426531186,1782549710000,1000.0,0.00037291,120]
[426531187,1782549714000,1000.0,0.00037291,120]
[426531188,1782549723000,1000.0,0.00037291,120]
[426531189,1782549728000,1000.0,0.00037291,120]
[426531190,1782549749000,1000.0,0.00037291,120]
[426531191,1782549756000,1514.0,0.00037291,120]
[426531238,1782550232000,-168.60730156,0.00013487,2]
[426531237,1782550232000,-312.59,0.00012813,2]
[426531242,1782550232000,-151.0,0.00013587,2]
[426531241,1782550232000,-168.52802305,0.00013587,2]
[426531239,1782550232000,-500.0,0.00013487,2]
[426531243,1782550232000,-152.0,0.00013587,2]
[426531245,1782550232000,-151.0,0.00013587,2]
[426531240,1782550232000,-150.0,0.00013586,2]
[426531244,1782550232000,-151.0,0.00013587,2]
[426531247,1782550232000,-150.0,0.00013587,2]
[426531246,1782550232000,-152.0,0.00013587,2]
[426531249,1782550232000,-151.0,0.00013587,2]
[426531253,1782550232000,-151.0,0.00013587,2]
[426531254,1782550232000,-150.0,0.00013587,2]
[426531251,1782550232000,-151.0,0.00013587,2]
[426531256,1782550232000,-61.48629378,0.00013587,2]
[426531270,1782550238000,-150.0,0.00013587,2]
[426531267,1782550238000,-151.0,0.00013587,2]
[426531271,1782550238000,-151.0,0.00013587,2]
[426531272,1782550238000,-150.0,0.00013587,2]
[426531269,1782550238000,-152.0,0.00013587,2]
[426531265,1782550238000,-151.0,0.00013587,2]
[426531268,1782550238000,-151.0,0.00013587,2]
[426531273,1782550238000,-150.0,0.00013587,2]
[426531275,1782550238000,-151.0,0.00013587,2]
[426531266,1782550238000,-151.0,0.00013587,2]
[426531264,1782550238000,-89.51370622,0.00013587,2]
[426531274,1782550238000,-151.0,0.00013587,2]
[426531276,1782550238000,-152.0,0.00013587,2]
[426531263,1782550238000,-314.21,0.00012813,2]
[426531279,1782550238000,-150.0,0.00013587,2]
[426531291,1782550238000,-9714.17945183,0.00014287,2]
[426531292,1782550238000,-1148.53642385,0.00014287,2]
[426531290,1782550238000,-312.59,0.00014161,2]
[426531288,1782550238000,-500.0,0.00014094,2]
[426531287,1782550238000,-151.0,0.00013787,2]
[426531289,1782550238000,-314.21,0.00014161,2]
[426531284,1782550238000,-49.60129378,0.00013598,2]
[426531285,1782550238000,-101.39870622,0.00013598,2]
[426531286,1782550238000,-151.0,0.00013634,2]
[426531283,1782550238000,-151.0,0.0001359,2]
[426531278,1782550238000,-152.0,0.00013587,2]
[426531281,1782550238000,-151.0,0.00013588,2]
[426531277,1782550238000,-152.0,0.00013587,2]
[426531492,1782550240000,-1858.67091392,0.00014287,2]
[426531557,1782550243000,-6994.81164812,0.00014287,2]
[426531558,1782550243000,-318.46,0.00014287,2]
[426531559,1782550243000,-454.87501951,0.00014287,2]
[426531554,1782550243000,-1354.72709289,0.00014287,2]
[426531562,1782550246000,-385.90158117,0.00014287,2]
[426531564,1782550246000,-532.32832048,0.00014287,2]
[426531563,1782550246000,-320.88383104,0.00014287,2]
[426531565,1782550247000,-682.0648927,0.00014287,2]
[426531566,1782550247000,-3364.62618254,0.00014287,2]
[426531601,1782550563000,534.09689897,0.00037291,120]
[426531609,1782550603000,1960.26,0.00037291,120]
[426531608,1782550603000,1960.26,0.00037291,120]
[426531613,1782550604000,1960.26,0.00037291,120]
[426531612,1782550604000,1960.26,0.00037291,120]
[426531611,1782550604000,1960.26,0.00037291,120]
[426531610,1782550604000,1960.26,0.00037291,120]
[426531616,1782550605000,1960.26,0.00037291,120]
[426531615,1782550605000,1960.26,0.00037291,120]
[426531614,1782550605000,1960.26,0.00037291,120]
[426531617,1782550606000,1960.26,0.00037291,120]
[426531619,1782550606000,1960.26,0.00037291,120]
[426531618,1782550606000,1960.26,0.00037291,120]
[426531623,1782550607000,1960.26,0.00037291,120]
[426531622,1782550607000,1960.26,0.00037291,120]
[426531621,1782550607000,1960.26,0.00037291,120]
[426531620,1782550607000,1960.26,0.00037291,120]
[426531626,1782550608000,1960.26,0.00037291,120]
[426531625,1782550608000,1960.26,0.00037291,120]
[426531624,1782550608000,1960.26,0.00037291,120]
[426531627,1782550609000,1960.26,0.00037291,120]
[426531630,1782550609000,1960.26,0.00037291,120]
[426531629,1782550609000,1960.26,0.00037291,120]
[426531628,1782550609000,1960.26,0.00037291,120]
[426531631,1782550610000,1960.42418334,0.00037291,120]
[426531642,1782550899000,-168.60730156,0.000109,2]
[426531643,1782550899000,-492.39269844,0.00011,2]
[426531647,1782550931000,494.687632,0.00011875,3]
[426531651,1782551261000,254.41956,0.00011875,3]
[426531652,1782551331000,150.0,9.832e-05,2]
[426531669,1782551431000,-175.09,0.00012695,2]
[426531667,1782551431000,-500.0,0.000121,2]
[426531676,1782551431000,-200.0,0.00013995,2]
[426531675,1782551431000,-154.96128957,0.00013993,2]
[426531677,1782551431000,-10849.3257294,0.00014093,2]
[426531678,1782551431000,-3257.12974933,0.00014093,2]
[426531685,1782551431000,-150.0,0.00014113,2]
[426531680,1782551431000,-2617.2437096,0.00014093,2]
[426531684,1782551431000,-283.0767701,0.00014093,2]
[426531671,1782551431000,-166.66,0.00013106,2]
[426531681,1782551431000,-3069.1804042,0.00014093,2]
[426531683,1782551431000,-152.0,0.00014093,2]
[426531682,1782551431000,-152.0,0.00014093,2]
[426531672,1782551431000,-166.66,0.00013377,2]
[426531668,1782551431000,-279.81166212,0.000121,2]
[426531670,1782551431000,-166.66,0.00012836,2]
[426531673,1782551431000,-166.66,0.00013647,2]
[426531679,1782551431000,-95730.69462767,0.00014093,2]
[426531666,1782551431000,-500.0,0.000121,2]
[426531664,1782551431000,-313.4,0.0001155,2]
[426531665,1782551431000,-216.51184279,0.00011685,2]
[426531663,1782551431000,-307.58,0.0001155,2]
[426531662,1782551431000,-168.555956,0.00011,2]
[426531659,1782551431000,-150.0,0.00010553,2]
[426531656,1782551431000,-150.0,0.00010137,2]
[426531657,1782551431000,-150.0,0.00010293,2]
[426531660,1782551431000,-436.6,0.00011,2]
[426531658,1782551431000,-313.4,0.0001045,2]
[426531674,1782551431000,-166.66,0.00013917,2]
[426531686,1782551431000,-4869.1607858,0.00014149,2]
[426531661,1782551431000,-1123.33870033,0.00011,2]
[426531690,1782551431000,-500.0,0.00014273,2]
[426531687,1782551431000,-11523.5409,0.00014187,2]
[426531717,1782551431000,-500.0,0.00014386,2]
[426531718,1782551431000,-500.0,0.00014386,2]
[426531714,1782551431000,-500.0,0.00014386,2]
[426531716,1782551431000,-500.0,0.00014386,2]
[426531705,1782551431000,-504.2741242,0.00014308,2]
[426531708,1782551431000,-500.0,0.00014386,2]
[426531712,1782551431000,-500.0,0.00014386,2]
[426531709,1782551431000,-500.0,0.00014386,2]
[426531713,1782551431000,-500.0,0.00014386,2]
[426531706,1782551431000,-500.0,0.00014386,2]
[426531704,1782551431000,-151.0,0.00014287,2]
[426531711,1782551431000,-500.0,0.00014386,2]
[426531707,1782551431000,-500.0,0.00014386,2]
[426531710,1782551431000,-596.44560156,0.00014386,2]
[426531715,1782551431000,-500.0,0.00014386,2]
[426531702,1782551431000,-150.0,0.00014287,2]
[426531703,1782551431000,-150.0,0.00014287,2]
[426531688,1782551431000,-166.66,0.00014187,2]
[426531691,1782551431000,-1293.52989504,0.00014287,2]
[426531697,1782551431000,-151.0,0.00014287,2]
[426531700,1782551431000,-153.0,0.00014287,2]
[426531695,1782551431000,-151.0,0.00014287,2]
[426531693,1782551431000,-152.0,0.00014287,2]
[426531689,1782551431000,-151.34293724,0.00014273,2]
[426531699,1782551431000,-150.0,0.00014287,2]
[426531692,1782551431000,-152.0,0.00014287,2]
[426531694,1782551431000,-151.0,0.00014287,2]
[426531696,1782551431000,-151.0,0.00014287,2]
[426531698,1782551431000,-151.0,0.00014287,2]
[426531701,1782551431000,-153.0,0.00014287,2]
[426531762,1782551432000,-1000.0,0.00014387,2]
[426531757,1782551432000,-1000.0,0.00014387,2]
[426531760,1782551432000,-1000.0,0.00014387,2]
[426531759,1782551432000,-1000.0,0.00014387,2]
[426531756,1782551432000,-1000.0,0.00014387,2]
[426531748,1782551432000,-1000.0,0.00014387,2]
[426531753,1782551432000,-1000.0,0.00014387,2]
[426531752,1782551432000,-1000.0,0.00014387,2]
[426531749,1782551432000,-1000.0,0.00014387,2]
[426531758,1782551432000,-1000.0,0.00014387,2]
[426531750,1782551432000,-1000.0,0.00014387,2]
[426531755,1782551432000,-1000.0,0.00014387,2]
[426531754,1782551432000,-1000.0,0.00014387,2]
[426531767,1782551432000,-1000.0,0.00014387,2]
[426531763,1782551432000,-1000.0,0.00014387,2]
[426531764,1782551432000,-1000.0,0.00014387,2]
[426531765,1782551432000,-1000.0,0.00014387,2]
[426531766,1782551432000,-1000.0,0.00014387,2]
[426531769,1782551432000,-1000.0,0.00014387,2]
[426531770,1782551432000,-181.73701232,0.00014387,2]
[426531772,1782551432000,-150.0,0.00014387,2]
[426531773,1782551432000,-150.0,0.00014387,2]
[426531774,1782551432000,-151.0,0.00014387,2]
[426531771,1782551432000,-500.0,0.00014387,2]
[426531747,1782551432000,-1000.0,0.00014387,2]
[426531775,1782551432000,-151.0,0.00014387,2]
[426531761,1782551432000,-1000.0,0.00014387,2]
[426531746,1782551432000,-419.07870563,0.00014386,2]
[426531730,1782551432000,-500.0,0.00014386,2]
[426531742,1782551432000,-500.0,0.00014386,2]
[426531768,1782551432000,-1000.0,0.00014387,2]
[426531720,1782551432000,-500.0,0.00014386,2]
[426531719,1782551432000,-500.0,0.00014386,2]
[426531722,1782551432000,-500.0,0.00014386,2]
[426531721,1782551432000,-500.0,0.00014386,2]
[426531723,1782551432000,-500.0,0.00014386,2]
[426531724,1782551432000,-500.0,0.00014386,2]
[426531725,1782551432000,-500.0,0.00014386,2]
[426531726,1782551432000,-500.0,0.00014386,2]
[426531727,1782551432000,-500.0,0.00014386,2]
[426531728,1782551432000,-500.0,0.00014386,2]
[426531729,1782551432000,-500.0,0.00014386,2]
[426531744,1782551432000,-500.0,0.00014386,2]
[426531731,1782551432000,-500.0,0.00014386,2]
[426531735,1782551432000,-500.0,0.00014386,2]
[426531734,1782551432000,-500.0,0.00014386,2]
[426531736,1782551432000,-500.0,0.00014386,2]
[426531733,1782551432000,-630.4690404,0.00014386,2]
[426531737,1782551432000,-500.0,0.00014386,2]
[426531738,1782551432000,-500.0,0.00014386,2]
[426531740,1782551432000,-500.0,0.00014386,2]
[426531739,1782551432000,-500.0,0.00014386,2]
[426531741,1782551432000,-500.0,0.00014386,2]
[426531751,1782551432000,-1000.0,0.00014387,2]
[426531743,1782551432000,-500.0,0.00014386,2]
[426531745,1782551432000,-500.0,0.00014386,2]
[426531732,1782551432000,-500.0,0.00014386,2]
[426531777,1782551432000,-153.0,0.00014387,2]
[426531781,1782551432000,-151.0,0.00014387,2]
[426531778,1782551432000,-150.0,0.00014387,2]
[426531811,1782551432000,-2000.0,0.00021773,2]
[426531810,1782551432000,-1293.52989503,0.00021625,2]
[426531812,1782551432000,-760.8084216,0.00021773,2]
[426531813,1782551432000,-500.0,0.00021872,2]
[426531814,1782551432000,-500.0,0.00021872,2]
[426531816,1782551432000,-500.0,0.00021872,2]
[426531815,1782551432000,-500.0,0.00021872,2]
[426531817,1782551432000,-500.0,0.00021872,2]
[426531818,1782551432000,-504.01932626,0.00021872,2]
[426531821,1782551432000,-500.0,0.00021872,2]
[426531820,1782551432000,-228.9426566,0.00021872,2]
[426531819,1782551432000,-500.0,0.00021872,2]
[426531824,1782551432000,-500.0,0.00021872,2]
[426531830,1782551432000,-5000.0,0.00021918,2]
[426531825,1782551432000,-505.45990089,0.00021872,2]
[426531827,1782551432000,-500.0,0.00021872,2]
[426531823,1782551432000,-500.0,0.00021872,2]
[426531828,1782551432000,-500.0,0.00021872,2]
[426531822,1782551432000,-500.0,0.00021872,2]
[426531829,1782551432000,-223.5752724,0.00021873,2]
[426531826,1782551432000,-876.79,0.00021872,2]
[426531831,1782551432000,-185.7,0.00022178,2]
[426531832,1782551432000,-1765.44,0.00022466,2]
[426531833,1782551432000,-195.044,0.00022466,2]
[426531776,1782551432000,-150.0,0.00014387,2]
[426531834,1782551432000,-760.80842153,0.00023848,2]
[426531836,1782551432000,-501.237,0.00024126,7]
[426531808,1782551432000,-185.7,0.0001996,2]
[426531809,1782551432000,-169.68,0.00020947,2]
[426531835,1782551432000,-1293.52989503,0.00024071,2]
[426531805,1782551432000,-471.96,0.00019003,2]
[426531779,1782551432000,-151.0,0.00014387,2]
[426531786,1782551432000,-1190.31221133,0.000145,2]
[426531784,1782551432000,-10501.97062091,0.0001439,2]
[426531787,1782551432000,-1000.0,0.00014528,2]
[426531782,1782551432000,-151.0,0.00014387,2]
[426531807,1782551432000,-447.36636975,0.00019236,2]
[426531783,1782551432000,-150.0,0.00014387,2]
[426531785,1782551432000,-1243.05226601,0.000144,2]
[426531789,1782551432000,-167.78,0.000148,2]
[426531788,1782551432000,-500.0,0.00014661,2]
[426531790,1782551432000,-500.0,0.00014999,2]
[426531791,1782551432000,-37621.18917779,0.00015,2]
[426531792,1782551432000,-7525.85252774,0.00015,2]
[426531780,1782551432000,-151.0,0.00014387,2]
[426531795,1782551432000,-589.31495044,0.00016438,2]
[426531793,1782551432000,-820.4,0.0001581,2]
[426531804,1782551432000,-200.0,0.00018511,2]
[426531806,1782551432000,-1293.52989503,0.00019179,2]
[426531802,1782551432000,-178.03,0.00018081,2]
[426531800,1782551432000,-178.03,0.0001767,2]
[426531803,1782551432000,-197.42,0.00018287,2]
[426531799,1782551432000,-500.0,0.00017507,2]
[426531798,1782551432000,-178.03,0.00017259,2]
[426531796,1782551432000,-1293.52989503,0.00016733,2]
[426531797,1782551432000,-178.03,0.00016848,2]
[426531794,1782551432000,-178.03,0.00016437,2]
[426531801,1782551432000,-185.7,0.00017743,2]
[426531843,1782551433000,-185.7,0.00026614,2]
[426531841,1782551433000,-760.80842153,0.00025924,2]
[426531844,1782551433000,-200.0,0.00026701,2]
[426531838,1782551433000,-173.17,0.00024658,2]
[426531837,1782551433000,-185.7,0.00024396,2]
[426531848,1782551433000,-3530.98557826,0.000272,2]
[426531840,1782551433000,-172.49,0.00024658,2]
[426531845,1782551433000,-37829.66248902,0.000268,2]
[426531842,1782551433000,-1293.52989503,0.00026516,2]